Cogmind - Beta 10.1 @@@ ROGUE MODE // 2020.10.26 @ 21:35:15 Player: derk Result: Destroyed by D-53 Grenadier with Mini Grenade Launcher Performance ------------- Evolutions (0) 0 Regions Visited (2) 400 Robots Destroyed (42) 210 Value Destroyed (530) 530 Prototype IDs (0) 0 Alien Tech Used (0) 0 Bonus (0) 0 TOTAL SCORE: 1140 Bonus ------- None Cogmind --------- Core Integrity 0/250 Matter 239/300 Energy 310/310 System Corruption 0% Temperature Cool (0) Movement Rolling (90) Location -10/Mines Parts ------- > --- POWER (1) -------- Fission Core > --- PROPULSION (2) --- Wheel Compact Wheel > --- UTILITY (2) ------ Medium Storage Unit Light Armor Plating > --- WEAPON (2) ------- Light Assault Rifle > --- INVENTORY (8) ---- Light Armor Plating Light Armor Plating Medium Laser Beam Cannon Assault Rifle Light Assault Rifle Light Assault Rifle Peak State ------------ > --- POWER ------------ Light Nuclear Core > --- PROPULSION ------- Light Treads Light Treads > --- UTILITY ---------- Improved Heat Sink Small Storage Unit > --- WEAPON ----------- Medium Laser Assault Rifle > --- INVENTORY -------- Ion Engine Aluminum Leg Aluminum Leg Wheel Wheel Assault Rifle [Rating: 11] Favorites ----------- Power Ion Engine Engine Ion Engine Power Core Fission Core Propulsion Light Treads Treads Light Treads Wheel Wheel Utility Small Storage Unit Device Improved Heat Sink Storage Small Storage Unit Protection Light Armor Plating Weapon Assault Rifle Energy Gun Medium Laser Energy Cannon Beam Cannon Ballistic Gun Assault Rifle Launcher Grenade Launcher Build | -11 -10 -10 ------- Run | Scr Mat Min Slots Evolved . | . . . Power . | . . . Propulsion . | . . . Utility . | . . . Weapon . | . . . Parts Attached 30 | 6 11 13 Power 4 | 1 2 1 Engine 2 | 1 1 . Core 2 | . 1 1 Reactor . | . . . Propulsion 9 | 2 3 4 Treads 5 | 2 3 . Leg . | . . . Wheel 4 | . . 4 Hover . | . . . Flight . | . . . Utility 7 | 1 4 2 Device 1 | . 1 . Storage 4 | 1 3 . Processor . | . . . Hackware . | . . . Protection 2 | . . 2 Artifact . | . . . Weapon 10 | 2 2 6 Energy Gun 2 | 1 1 . Energy Cannon 1 | . . 1 Ballistic Gun 4 | 1 1 2 Ballistic Cannon . | . . . Launcher 3 | . . 3 Special Weapon . | . . . Impact Weapon . | . . . Slashing Weapon . | . . . Piercing Weapon . | . . . Special Melee Weapon . | . . . Unidentified Prototypes . | . . . Parts Lost 6 | . 2 4 Power 1 | . 1 . Propulsion 2 | . . 2 Utility 1 | . . 1 Weapon 2 | . 1 1 Highest Loss Streak 2 | . 1 2 Average Slot Usage (%) 98 | . 98 96 Engine 9 | . 11 3 Core 4 | . 2 10 Treads 22 | . 27 5 Wheel 4 | . . 19 Device 2 | . 3 . Storage 22 | . 24 18 Protection 2 | . . 9 Energy Gun 1 | . 2 . Ballistic Gun 24 | . 25 20 Launcher 1 | . . 7 Naked Turns . | . . . Heaviest Build 25 | 11 21 25 Greatest Support 40 | 40 40 40 Greatest Overweight (x) 2 | . . 2 Average Overweight (x) . | . . . Largest Inventory Capacity 10 | 6 10 10 Average Capacity 7 | 4 7 8 Most Carried 10 | 6 10 10 Average Carried 7 | 3 7 8 Final Capacity 10 | 6 10 8 Final Carried 10 | 6 10 7 Class Distribution -------------------- 93% | Mutant 6% | Scavenger-Mutant Dominant Class ---------------- Mutant | -10/Materials Mutant | -10/Mines Resources | -11 -10 -10 ----------- Run | Scr Mat Min Matter Collected 1012 | 256 455 301 Remotely . | . . . Salvage Created 873 | 50 553 270 Parts 64 | 1 37 26 Haulers Intercepted 1 | . 1 . Recyclers Shooed . | . . . Parts Field Recycled . | . . . Retrieved Matter . | . . . Parts Self-Destructed . | . . . Prevented . | . . . Kills | -11 -10 -10 ------- Run | Scr Mat Min Combat Hostiles Destroyed 35 | . 13 22 Guns 17 | . 13 4 AOE 18 | . . 18 Classes Destroyed 7 | 1 5 1 Worker 2 | . 2 . Hauler 1 | . 1 . Recycler 3 | 1 1 1 Watcher 1 | . 1 . Swarmer 16 | . 6 10 Grunt 9 | . 7 2 Assembled 10 | . . 10 Best Kill Streak 10 | 1 5 10 Combat Bots Only 10 | . 4 10 Max Kills in Single Turn 3 | 1 1 3 Gunslinging . | . . . Exploded 3 | . . 3 Melee . | . . . Uniques/NPCs Destroyed . | . . . Combat | -11 -10 -10 -------- Run | Scr Mat Min Damage Taken 1277 | . 607 670 Core 258 | . 104 154 Absorbed by Shields . | . . . Core Remaining (%) 100 | 100 . . Volleys Fired 103 | 3 60 40 Largest 2 | 2 2 2 Hottest 70 | 70 70 50 Shots Fired 188 | 6 120 62 Gun 172 | 6 120 46 Cannon . | . . . Launcher 16 | . . 16 Special . | . . . Kinetic 164 | 3 115 46 Thermal 8 | 3 5 . Explosive 16 | . . 16 Electromagnetic . | . . . Robot Hit Streak 10 | 3 10 8 Robot Miss Streak 4 | 1 4 2 Penetration Max . | . . . Secondary Targets 1 | . 1 . Max Gunslinging Chain 1 | . 1 . Shots Hit Robots 112 | 5 77 30 Core Hits 71 | 2 29 40 Critical Hits . | . . . Critical Kills . | . . . Critical Parts Destroyed . | . . . Melee Attacks . | . . . Impact . | . . . Slashing . | . . . Piercing . | . . . Sneak Attacks . | . . . Combat Hostiles . | . . . Follow-up Attacks . | . . . Damage Inflicted 2211 | 61 891 1259 Guns 1283 | 61 891 331 Cannons . | . . . Explosions 928 | . . 928 Melee . | . . . Ramming . | . . . Kinetic 1182 | 25 826 331 Thermal 101 | 36 65 . Explosive 928 | . . 928 Electromagnetic . | . . . Impact . | . . . Slashing . | . . . Piercing . | . . . Highest Corruption . | . . . Average Corruption . | . . . Corruption Purged . | . . . Overload Shots . | . . . Overflow Damage 30 | . . 30 Projectiles . | . . . Explosions 30 | . . 30 Melee . | . . . Knockbacks . | . . . Impact . | . . . Kinetic . | . . . Secondary . | . . . Self-Inflicted Damage 76 | . . 76 Shots 3 | . . 3 Rammed . | . . . Targets Rammed . | . . . Kicked . | . . . Crushed . | . . . Highest Temperature 93 | 18 57 93 Average Temperature 25 | 9 30 26 Received Heat Transfer 319 | . 201 118 Siege Activations . | . . . Robots Corrupted . | . . . Combat Hostiles . | . . . Parts Fried . | . . . Impact Corruptions . | . . . Robots Melted . | . . . Combat Hostiles . | . . . Parts Melted . | . . . Heat Transferred 296 | 111 185 . Parts Sabotaged . | . . . Parts Stolen . | . . . Parts Stripped . | . . . Power Chain Reactions . | . . . Missiles Intercepted . | . . . Alert | -11 -10 -10 ------- Run | Scr Mat Min Peak Influence 301 | 5 178 301 Initial 11 | . 3 11 Average 61 | . 57 87 Maximum Alert Level 1 | . . 1 Low Security (%) 96 | 100 100 85 Level 1 3 | . . 14 Level 2 . | . . . Level 3 . | . . . Level 4 . | . . . Level 5 . | . . . High Security . | . . . Max Security . | . . . Squads Dispatched 3 | . 3 . Investigation 1 | . 1 . Extermination . | . . . Reinforcement 2 | . 2 . Assault . | . . . Garrison . | . . . Intercept . | . . . Construction Impeded . | . . . Haulers Reinforced . | . . . Stealth | -11 -10 -10 --------- Run | Scr Mat Min Distress Signals 3 | . 3 . Communications Jammed . | . . . Distress Signals . | . . . Times Spotted 54 | . 32 22 Peak Tracking Total 8 | . 5 8 Tactical Retreats 2 | . 1 1 Traps | -11 -10 -10 ------- Run | Scr Mat Min Traps Triggered 3 | . 3 . Indirectly . | . . . Trap Hack Attempts . | . . . Triggered . | . . . Disarmed . | . . . Reprogrammed . | . . . Reused . | . . . Traps Extracted . | . . . Installed . | . . . Triggered . | . . . Machines | -11 -10 -10 ---------- Run | Scr Mat Min Machines Disabled . | . . . Max in Single Turn . | . . . Machines Sabotaged . | . . . Garrisons Compromised . | . . . Overloaded Fab Kills . | . . . Fab Network Shutdowns . | . . . Hacking | -11 -10 -10 --------- Run | Scr Mat Min Machines Accessed 6 | . 6 . Terminals 5 | . 5 . Fabricators . | . . . Repair Stations 1 | . 1 . Recycling Units . | . . . Scanalyzers . | . . . Garrison Access . | . . . Total Hacks 14 | . 14 . Successful 9 | . 9 . Failed 5 | . 5 . Catastrophic 1 | . 1 . Database Lockouts . | . . . Manual 7 | . 7 . Terminals 12 | . 12 . Fabricators . | . . . Repair Stations 2 | . 2 . Recycling Units . | . . . Scanalyzers . | . . . Garrison Access . | . . . Terminal Hacks 7 | . 7 . Part Schematic 1 | . 1 . Unreport Threat 1 | . 1 . Locate Traps 2 | . 2 . Recall Reinforcements 1 | . 1 . Zone Layout 2 | . 2 . Fabricator Hacks . | . . . Repair Station Hacks 2 | . 2 . Scan Component 1 | . 1 . Repair 1 | . 1 . Recycling Unit Hacks . | . . . Scanalyzer . | . . . Garrison Access Hacks . | . . . Unauthorized Hacks . | . . . Terminals . | . . . Fabricators . | . . . Repair Stations . | . . . Recycling Units . | . . . Scanalyzers . | . . . Garrison Access . | . . . Data Cores Recovered . | . . . Used . | . . . Hacking Detections 5 | . 5 . Full Trace Events . | . . . Feedback Events . | . . . Feedback Blocked . | . . . Robot Schematics Acquired . | . . . Robots Built . | . . . Matter . | . . . Time . | . . . Total Robot Build Rating . | . . . Part Schematics Acquired 1 | . 1 . Parts Built . | . . . Matter . | . . . Time . | . . . Total Part Build Rating . | . . . Parts Repaired 1 | . 1 . Time 26 | . 26 . Parts Recycled . | . . . Recycled Matter . | . . . Retrieved Matter . | . . . Retrieved Components . | . . . Parts Scanalyzed . | . . . Part Schematics Acquired . | . . . Parts Damaged . | . . . Bothacking | -11 -10 -10 ------------ Run | Scr Mat Min Used RIF Installer . | . . . Robots Hacked . | . . . Non-combat . | . . . Combat . | . . . Robot Hacks Applied . | . . . Relay Couplers Released . | . . . Robots Rewired . | . . . Allies Hacked . | . . . Hacks Repelled . | . . . Allies | -11 -10 -10 -------- Run | Scr Mat Min Total Allies . | . . . Largest Group . | . . . Highest-Rated Group . | . . . Highest-Rated Ally . | . . . Total Orders . | . . . Ally Attacks . | . . . Total Damage . | . . . Kills . | . . . Allies Corrupted . | . . . Allies Melted . | . . . Intel | -11 -10 -10 ------- Run | Scr Mat Min Robot Analysis Total . | . . . Derelict Logs Recovered 1 | . . 1 Drone Launches . | . . . Drone Recoveries . | . . . Exploration | -11 -10 -10 ------------- Run | Scr Mat Min Turns Passed 1826 | 94 1298 434 Spaces Moved 1002 | 47 656 299 Core 4 | 4 . . Treads 720 | 43 656 21 Legs . | . . . Wheels 278 | . . 278 Hover . | . . . Flight . | . . . Fastest Speed 50 | 50 160 90 Average Speed 140 | 150 160 96 Slowest Speed 160 | 160 160 160 Overloaded Moves . | . . . Propulsion Burnouts . | . . . Robots Hopped . | . . . Cave-ins Triggered . | . . . Exploration Rate (%) 51 | 4 97 52 Regions Visited 2 Branch Regions 1 Pre-discovered Areas 1 | . . 1 Known Exits Taken . | . . . Unknown Exits Taken 2 | 1 1 . Scrap Searched 1 | . . 1 Spaces Dug 39 | . . 39 Terrain Destroyed 128 | . . 128 Melee . | . . . Projectile . | . . . AOE 128 | . . 128 Terrain Rammed . | . . . Walls Destroyed . | . . . Machines Disabled . | . . . Actions | -11 -10 -10 --------- Run | Scr Mat Min Total 1234 | 61 788 385 Wait 62 | . 36 26 Move 1000 | 46 655 299 Hop . | . . . Pick Up 21 | 6 14 1 Fast Attach 16 | 6 7 3 Attach 4 | . 2 2 Detach . | . . . Swap 10 | . 2 8 Drop 18 | . 12 6 Fire 103 | 3 60 40 Melee . | . . . Ram . | . . . Kick . | . . . Crush . | . . . Escape Stasis . | . . . Rewire . | . . . Trap . | . . . Miscellaneous . | . . . Route ------- -11/Scrapyard -10/Materials (discovered 4 exits: [*Mat x3] / [*Min]) -10/Mines (discovered 1 exit: [*Mat]) History --------- Turn | Location | Event 23 | -11/Scrapyard | Discovered new exit (range 16) 95 | -11/Scrapyard | Entered Materials 121 | -10/Materials | Discovered new exit (range 12) 300 | -10/Materials | Build established: Mutant 374 | -10/Materials | Discovered new exit (range 5) 652 | -10/Materials | Discovered new exit (range 3) 708 | -10/Materials | Repaired Lgt. Treads 1205 | -10/Materials | Discovered new exit (range 3) 1393 | -10/Materials | Entered Mines 1394 | -10/Mines | Learned location of Storage (-9) 1415 | -10/Mines | Assembled infested the area 1420 | -10/Mines | Assisted by a Guerilla fighting off Assembled 1476 | -10/Mines | Destroyed 10 combat bots 1641 | -10/Mines | Core integrity fell below 50% 1745 | -10/Mines | Learned 8 Materials zone layouts 1761 | -10/Mines | Discovered new exit (range 5) 1822 | -10/Mines | Core integrity fell below 20% 1827 | -10/Mines | Destroyed by D-53 Grenadier with Mini Grenade Launcher Last Messages --------------- 01734_ U-05 Engineer lays Concrete. 01737_ U-05 Engineer builds a Wall. 01737_ U-05 Engineer lays Concrete. 01741_ U-05 Engineer builds a Wall. 01741_ Acquired 9 matter. 01745_ Acquired derelict log, extracted data. Data stored: Materials zone layouts (x8). 01752_ S-10 Pest destroyed. 01761_ EXIT=FOUND 01773_ The unstable cave ceiling collapses. 01779_ S-10 Pest destroyed. 01782_ Acquired 2 matter. 01784_ Acquired 3 matter. 01786_ Acquired 4 matter. 01791_ The unstable cave ceiling collapses. 01817_ Destroyed Lgt. Ion Engine. 01820_ S-10 Pest destroyed. 01821_ Grenade Launcher destroyed. 01823_ Lgt. Armor Plating destroyed. 01824_ The unstable cave ceiling collapses. Map ----- +----------------------------------------------------+ | ?????????????????????????????????????????????????? | | ?????????????????????????????????????????????????? | | ?????????????????????????????????????????????????? | | ?????????????????????????????????????????????????? | | ?????????????????????????????????????????????????? | | ?????????????????????????????????????????????????? | | ?????????????????????????????????????????????????? | | ?????????????????????????????????????????####????? | | ????????????????????????????????????????## ###### | | ???????????????????????########????????## < | | ???????????????????????# """" #???????## | | ???????????????????????# """" #???????# #??? | | ???????????????????????# """" #???????# ## ##??? | | ???????????????????????# #???????# ##?###???? | | ???????????????????????# [=* #???????# #????????? | | ???????????????????????# * #####???# #????????? | | ???????????????????????# [ # ##??# #????????? | | ???????????????????????#### # #### #????????? | | ??????????????????????????# #????????? | | ??????????????????????????# # #####????????? | | ??????????????????????????# # ##???????????? | | ????????????????????????#### ### ##??????????? | | ????????????????????????# #?# """ #??????????? | | ?????????????????????#### # ##?# """ #??????????? | | ?????????????????????# # ### """ ##??????????? | | ????# ########## @ ## #???????????? | | ????# # ### ##??###?????? | | ?????# ###### d ##### #??# ?????? | | ????????????????## d # = #??# ?????? | | ????????????????# [ # # * #??? ?????? | | ????????????????# # * = #### ###??? | | ????????????????# # =[ #### | | ??????????????# ##### ## ##### # | | ????????????? ?????#### #### #??#### # | | ???????????? ?????????# #??## ###?# % ##? | | ???????????????????????? #???###k #### #? | | ???????????????????????? ?????## ### #? | | ???????????????????????? ????## ##? | | ???????????????????????? #????# ### #### | | ?????????????? ???????? #?????# #### #? # | | ???????????? #??????? ?????# %##??# #? # | | ???????????? #?????? ?????## #??# ## # | | ??????????? ?????? ##????# ##?# # | | ???????????? ????? #????##### # # ## | | ?????????????? #????## #??????#### # # | | ??????????????? ##???# #?????????# # # ## | | ????????????????#! #??# #?????????# ## ## # # | | ?????????????????# ### #?????????# # # # | | ??????????????????# ## ##????????# ## # # | | ???????????????????# ! ##???????# ####%" ## | +----------------------------------------------------+ Best States ------------- Heat Dissipation 39 Energy Generation 18 Energy Capacity 310 Matter Stores 300 Matter Capacity 300 Sight Range 16 Terrain Scan Density 10 Armor Coverage 150 Evasion (%) 42 Recoil Reduction 2 Item Schematics ----------------- Hcp. Storage Unit | -10/Materials | Hacked Robot Schematics ------------------ None Fabricated ------------ Nothing Alien Tech Used ----------------- None Achievements -------------- None Challenges ------------ None Game ------ Seed ColdCoolantFilter Manual? 0 Play Time 00:15:11 Cumulative 223.9 hours Start 2020.10.26 @ 21:21:28 End 2020.10.26 @ 21:35:15 Sessions 1 Manual Loads 0 Difficulty Rogue Special Mode None Game No. 97 Rogue 97 Adventurer 0 Explorer 0 Win Type - Total 5 Types 3/0/1/1/0/0/0/0/0 Lore% 52 Gallery% 83 Achievement% 63 Wizard Run 0 Options --------- ASCII 0 Keyboard 0 Movement Numpad Keybinds 0 Fullscreen 1 Font 18/SmallcapsGlow Map View 76x50 Tactical HUD 1 Map Filters NONE Filters NONE Steam 1 RUN: a0babd87-e8cf-49ce-be65-50e11a78dd20